[Event "Titled Tuesday Blitz April 18 Late 2023"]
[White "Lorenzo De La Riva, Lazaro"]
[Black "Osmak, Yuliia"]
[WhiteFideId "2268809"]
[BlackFideId "14101602"]
[WhiteElo "2294"]
[BlackElo "2291"]
[Result "1-0"]
[Round "05"]
[TimeControl "180+2"]
[Date "2023.04.18"]
[WhiteClock "0:00:24"]
[BlackClock "0:00:07"]

1. d4 {[%clk 0:02:52]}  Nf6 {[%clk 0:02:56]} 2. Nc3 {[%clk 0:02:48]}  d5 {[%clk 0:02:55]} 3. Bf4 {[%clk 0:02:47]}  a6 {[%clk 0:02:53]} 4. Nf3 {[%clk 0:02:44]}  c5 {[%clk 0:02:53]} 5. dxc5 {[%clk 0:02:43]}  Nc6 {[%clk 0:02:48]} 6. a3 {[%clk 0:02:40]}  Bg4 {[%clk 0:02:45]} 7. b4 {[%clk 0:02:37]}  d4 {[%clk 0:02:44]} 8. Na4 {[%clk 0:02:35]}  Bxf3 {[%clk 0:02:43]} 9. exf3 {[%clk 0:02:34]}  e5 {[%clk 0:02:44]} 10. Bd2 {[%clk 0:02:32]}  Be7 {[%clk 0:02:38]} 11. Bd3 {[%clk 0:02:33]}  O-O {[%clk 0:02:36]} 12. O-O {[%clk 0:02:33]}  Nd5 {[%clk 0:02:36]} 13. g3 {[%clk 0:02:18]}  Rb8 {[%clk 0:02:22]} 14. c4 {[%clk 0:02:13]}  dxc3 {[%clk 0:02:20]} 15. Bxc3 {[%clk 0:02:10]}  Nxc3 {[%clk 0:02:19]} 16. Nxc3 {[%clk 0:02:09]}  Nd4 {[%clk 0:02:18]} 17. Be4 {[%clk 0:02:07]}  f5 {[%clk 0:02:17]} 18. Bd5+ {[%clk 0:02:06]}  Kh8 {[%clk 0:02:17]} 19. f4 {[%clk 0:02:07]}  Bf6 {[%clk 0:02:12]} 20. fxe5 {[%clk 0:02:05]}  Bxe5 {[%clk 0:02:13]} 21. Re1 {[%clk 0:02:04]}  Qf6 {[%clk 0:02:07]} 22. Rc1 {[%clk 0:01:44]}  Rbd8 {[%clk 0:01:58]} 23. Bg2 {[%clk 0:01:41]}  f4 {[%clk 0:01:51]} 24. Nd5 {[%clk 0:01:39]}  Qf5 {[%clk 0:01:47]} 25. Be4 {[%clk 0:01:26]}  Qg5 {[%clk 0:01:35]} 26. h4 {[%clk 0:01:18]}  Qh6 {[%clk 0:01:26]} 27. Qg4 {[%clk 0:01:13]}  fxg3 {[%clk 0:00:46]} 28. fxg3 {[%clk 0:01:14]}  Bxg3 {[%clk 0:00:46]} 29. Qxg3 {[%clk 0:01:02]}  Qxc1 {[%clk 0:00:45]} 30. Rxc1 {[%clk 0:01:00]}  Ne2+ {[%clk 0:00:43]} 31. Kg2 {[%clk 0:01:00]}  Nxg3 {[%clk 0:00:43]} 32. Kxg3 {[%clk 0:01:00]}  Rfe8 {[%clk 0:00:40]} 33. Bf3 {[%clk 0:01:00]}  Re5 {[%clk 0:00:31]} 34. Rd1 {[%clk 0:00:42]}  g5 {[%clk 0:00:29]} 35. h5 {[%clk 0:00:39]}  Kg7 {[%clk 0:00:29]} 36. a4 {[%clk 0:00:37]}  h6 {[%clk 0:00:16]} 37. b5 {[%clk 0:00:36]}  axb5 {[%clk 0:00:16]} 38. axb5 {[%clk 0:00:37]}  g4 {[%clk 0:00:15]} 39. Bg2 {[%clk 0:00:35]}  Rxh5 {[%clk 0:00:13]} 40. c6 {[%clk 0:00:35]}  bxc6 {[%clk 0:00:13]} 41. bxc6 {[%clk 0:00:36]}  Rc8 {[%clk 0:00:13]} 42. Rc1 {[%clk 0:00:31]}  Re5 {[%clk 0:00:12]} 43. c7 {[%clk 0:00:30]}  h5 {[%clk 0:00:11]} 44. Nb6 {[%clk 0:00:28]}  Re3+ {[%clk 0:00:10]} 45. Kf4 {[%clk 0:00:27]}  Ree8 {[%clk 0:00:06]} 46. Nxc8 {[%clk 0:00:25]}  Rxc8 {[%clk 0:00:07]} 47. Bb7 {[%clk 0:00:24]} 1-0


[Site "https://www.chess.com"]

[Event "Titled Tuesday Blitz April 18 Late 2023"]
[White "Szente Varga, Fruzsina"]
[Black "Blomqvist, Erik"]
[WhiteFideId "712264"]
[BlackFideId "1709437"]
[WhiteElo "1994"]
[BlackElo "2436"]
[Result "0-1"]
[Round "05"]
[TimeControl "180+2"]
[Date "2023.04.18"]
[WhiteClock "0:00:08"]
[BlackClock "0:00:48"]

1. e4 {[%clk 0:03:00]}  c5 {[%clk 0:02:49]} 2. Nf3 {[%clk 0:02:59]}  d6 {[%clk 0:02:49]} 3. d4 {[%clk 0:02:59]}  cxd4 {[%clk 0:02:50]} 4. Qxd4 {[%clk 0:03:00]}  Nc6 {[%clk 0:02:49]} 5. Bb5 {[%clk 0:03:00]}  Bd7 {[%clk 0:02:49]} 6. Qd3 {[%clk 0:02:59]}  g6 {[%clk 0:02:46]} 7. c4 {[%clk 0:03:00]}  Bg7 {[%clk 0:02:46]} 8. Nc3 {[%clk 0:03:00]}  Nf6 {[%clk 0:02:46]} 9. O-O {[%clk 0:03:00]}  O-O {[%clk 0:02:46]} 10. h3 {[%clk 0:03:01]}  Nb4 {[%clk 0:02:14]} 11. Qe2 {[%clk 0:03:01]}  a6 {[%clk 0:02:10]} 12. Bxd7 {[%clk 0:02:49]}  Nxd7 {[%clk 0:02:11]} 13. Be3 {[%clk 0:02:41]}  Bxc3 {[%clk 0:01:56]} 14. bxc3 {[%clk 0:02:40]}  Nc6 {[%clk 0:01:56]} 15. Nd4 {[%clk 0:02:38]}  Rc8 {[%clk 0:01:53]} 16. Rab1 {[%clk 0:02:35]}  Qc7 {[%clk 0:01:44]} 17. Bh6 {[%clk 0:01:52]}  Rfe8 {[%clk 0:01:43]} 18. Qb2 {[%clk 0:01:28]}  Na5 {[%clk 0:01:41]} 19. f4 {[%clk 0:01:06]}  Qxc4 {[%clk 0:01:34]} 20. Rf3 {[%clk 0:01:06]}  Nc5 {[%clk 0:01:24]} 21. Qc2 {[%clk 0:00:38]}  Nc6 {[%clk 0:01:16]} 22. Nxc6 {[%clk 0:00:29]}  Rxc6 {[%clk 0:01:16]} 23. Re1 {[%clk 0:00:26]}  b5 {[%clk 0:01:08]} 24. f5 {[%clk 0:00:26]}  Nd7 {[%clk 0:01:01]} 25. fxg6 {[%clk 0:00:26]}  hxg6 {[%clk 0:01:00]} 26. Bf4 {[%clk 0:00:25]}  b4 {[%clk 0:00:59]} 27. e5 {[%clk 0:00:23]}  dxe5 {[%clk 0:00:55]} 28. Bxe5 {[%clk 0:00:23]}  Qc5+ {[%clk 0:00:55]} 29. Bd4 {[%clk 0:00:12]}  Qxd4+ {[%clk 0:00:55]} 30. Kh2 {[%clk 0:00:10]}  Rxc3 {[%clk 0:00:51]} 31. Qa4 {[%clk 0:00:08]}  Rxf3 {[%clk 0:00:48]} 0-1


[Site "https://www.chess.com"]

[Event "Titled Tuesday Blitz April 18 Late 2023"]
[White "Zarnicki, Pablo"]
[Black "Bogaudinov, Rushan"]
[WhiteFideId "100137"]
[BlackFideId "4129288"]
[WhiteElo "2468"]
[BlackElo "1967"]
[Result "1-0"]
[Round "05"]
[TimeControl "180+2"]
[Date "2023.04.18"]
[WhiteClock "0:00:42"]
[BlackClock "0:00:01"]

1. e4 {[%clk 0:02:52]}  c5 {[%clk 0:02:10]} 2. Nf3 {[%clk 0:02:21]}  e6 {[%clk 0:02:09]} 3. c3 {[%clk 0:02:21]}  d5 {[%clk 0:02:06]} 4. exd5 {[%clk 0:02:20]}  Qxd5 {[%clk 0:02:06]} 5. d4 {[%clk 0:02:19]}  Nf6 {[%clk 0:02:05]} 6. Be2 {[%clk 0:02:17]}  Nc6 {[%clk 0:02:03]} 7. O-O {[%clk 0:02:16]}  Be7 {[%clk 0:01:58]} 8. Be3 {[%clk 0:02:11]}  cxd4 {[%clk 0:01:54]} 9. cxd4 {[%clk 0:02:11]}  O-O {[%clk 0:01:53]} 10. Nc3 {[%clk 0:02:07]}  Qd8 {[%clk 0:01:53]} 11. Rc1 {[%clk 0:02:00]}  a6 {[%clk 0:01:49]} 12. Re1 {[%clk 0:01:59]}  Bd7 {[%clk 0:01:39]} 13. Ne5 {[%clk 0:01:57]}  Nb4 {[%clk 0:01:32]} 14. Bf3 {[%clk 0:01:55]}  Nbd5 {[%clk 0:01:24]} 15. Bg5 {[%clk 0:01:53]}  Nxc3 {[%clk 0:01:13]} 16. bxc3 {[%clk 0:01:52]}  Rb8 {[%clk 0:01:07]} 17. Qb3 {[%clk 0:01:45]}  h6 {[%clk 0:00:49]} 18. Bf4 {[%clk 0:01:41]}  b5 {[%clk 0:00:21]} 19. Nxd7 {[%clk 0:01:37]}  Qxd7 {[%clk 0:00:22]} 20. Bxb8 {[%clk 0:01:37]}  Rxb8 {[%clk 0:00:23]} 21. Red1 {[%clk 0:01:33]}  Bd6 {[%clk 0:00:20]} 22. g3 {[%clk 0:01:32]}  h5 {[%clk 0:00:19]} 23. Kg2 {[%clk 0:01:23]}  h4 {[%clk 0:00:18]} 24. Qc2 {[%clk 0:01:19]}  g6 {[%clk 0:00:18]} 25. c4 {[%clk 0:01:17]}  bxc4 {[%clk 0:00:18]} 26. Qxc4 {[%clk 0:01:17]}  Rb2 {[%clk 0:00:17]} 27. Rc2 {[%clk 0:01:16]}  Rxc2 {[%clk 0:00:16]} 28. Qxc2 {[%clk 0:01:00]}  Kg7 {[%clk 0:00:15]} 29. Qc6 {[%clk 0:00:59]}  Qe7 {[%clk 0:00:14]} 30. Rb1 {[%clk 0:00:58]}  h3+ {[%clk 0:00:11]} 31. Kxh3 {[%clk 0:00:57]}  Nh7 {[%clk 0:00:11]} 32. Kg2 {[%clk 0:00:57]}  Ng5 {[%clk 0:00:11]} 33. h4 {[%clk 0:00:56]}  Nxf3 {[%clk 0:00:10]} 34. Qxf3 {[%clk 0:00:56]}  a5 {[%clk 0:00:09]} 35. Rb7 {[%clk 0:00:57]}  Qf8 {[%clk 0:00:08]} 36. a4 {[%clk 0:00:54]}  Bb4 {[%clk 0:00:08]} 37. h5 {[%clk 0:00:54]}  gxh5 {[%clk 0:00:08]} 38. Qxh5 {[%clk 0:00:54]}  Kg8 {[%clk 0:00:05]} 39. Qg5+ {[%clk 0:00:53]}  Qg7 {[%clk 0:00:04]} 40. Rb8+ {[%clk 0:00:53]}  Bf8 {[%clk 0:00:04]} 41. Qxg7+ {[%clk 0:00:52]}  Kxg7 {[%clk 0:00:05]} 42. g4 {[%clk 0:00:47]}  Bd6 {[%clk 0:00:04]} 43. Ra8 {[%clk 0:00:46]}  Bb4 {[%clk 0:00:04]} 44. f4 {[%clk 0:00:47]}  Kf6 {[%clk 0:00:03]} 45. Kf3 {[%clk 0:00:47]}  Ke7 {[%clk 0:00:03]} 46. Ra7+ {[%clk 0:00:47]}  Kf6 {[%clk 0:00:03]} 47. g5+ {[%clk 0:00:46]}  Kg6 {[%clk 0:00:03]} 48. Ke4 {[%clk 0:00:44]}  Be1 {[%clk 0:00:02]} 49. Ra6 {[%clk 0:00:44]}  Kg7 {[%clk 0:00:02]} 50. f5 {[%clk 0:00:42]}  exf5+ {[%clk 0:00:02]} 51. Kxf5 {[%clk 0:00:43]}  Bd2 {[%clk 0:00:02]} 52. d5 {[%clk 0:00:43]}  Bb4 {[%clk 0:00:02]} 53. d6 {[%clk 0:00:43]}  Kf8 {[%clk 0:00:02]} 54. Ra8+ {[%clk 0:00:43]}  Kg7 {[%clk 0:00:01]} 55. d7 {[%clk 0:00:44]}  Be7 {[%clk 0:00:01]} 56. Re8 {[%clk 0:00:42]}  f6 {[%clk 0:00:01]} 57. Rxe7+ {[%clk 0:00:42]} 1-0


[Site "https://www.chess.com"]

[Event "Titled Tuesday Blitz April 18 Late 2023"]
[White "Skaric, Djuro"]
[Black "Sanchez Alvares, Kelvin Antonio"]
[WhiteFideId "934569"]
[BlackFideId "3906680"]
[WhiteElo "2282"]
[BlackElo "2217"]
[Result "0-1"]
[Round "05"]
[TimeControl "180+2"]
[Date "2023.04.18"]
[WhiteClock "0:01:41"]
[BlackClock "0:00:10"]

1. g3 {[%clk 0:03:00]}  d5 {[%clk 0:02:57]} 2. Bg2 {[%clk 0:03:00]}  c6 {[%clk 0:02:57]} 3. d3 {[%clk 0:03:00]}  e5 {[%clk 0:02:56]} 4. Nf3 {[%clk 0:02:59]}  Bd6 {[%clk 0:02:55]} 5. O-O {[%clk 0:02:59]}  Bg4 {[%clk 0:02:48]} 6. h3 {[%clk 0:02:58]}  Bh5 {[%clk 0:02:45]} 7. Nc3 {[%clk 0:02:58]}  Nd7 {[%clk 0:02:39]} 8. e4 {[%clk 0:02:57]}  d4 {[%clk 0:02:35]} 9. Ne2 {[%clk 0:02:56]}  Ngf6 {[%clk 0:02:33]} 10. g4 {[%clk 0:02:56]}  Bg6 {[%clk 0:02:32]} 11. c3 {[%clk 0:02:55]}  dxc3 {[%clk 0:02:26]} 12. bxc3 {[%clk 0:02:54]}  O-O {[%clk 0:02:26]} 13. Ng3 {[%clk 0:02:53]}  Bc7 {[%clk 0:02:23]} 14. Nf5 {[%clk 0:02:52]}  Re8 {[%clk 0:02:17]} 15. Bg5 {[%clk 0:02:50]}  Nc5 {[%clk 0:02:14]} 16. Nxe5 {[%clk 0:02:41]}  Bxe5 {[%clk 0:02:02]} 17. d4 {[%clk 0:02:41]}  Ncxe4 {[%clk 0:01:50]} 18. dxe5 {[%clk 0:02:40]}  Qxd1 {[%clk 0:01:48]} 19. Rfxd1 {[%clk 0:02:33]}  Rxe5 {[%clk 0:01:32]} 20. f4 {[%clk 0:02:33]}  Rb5 {[%clk 0:01:26]} 21. Ne7+ {[%clk 0:02:32]}  Kf8 {[%clk 0:01:23]} 22. Bxf6 {[%clk 0:02:32]}  Nxf6 {[%clk 0:01:21]} 23. Nxg6+ {[%clk 0:02:26]}  hxg6 {[%clk 0:01:21]} 24. g5 {[%clk 0:02:26]}  Nh5 {[%clk 0:01:18]} 25. Rd4 {[%clk 0:02:25]}  Rc5 {[%clk 0:01:14]} 26. c4 {[%clk 0:02:22]}  Ng3 {[%clk 0:01:00]} 27. Kf2 {[%clk 0:02:21]}  Nf5 {[%clk 0:00:59]} 28. Rd7 {[%clk 0:02:21]}  Rxc4 {[%clk 0:00:57]} 29. Re1 {[%clk 0:02:16]}  Rc2+ {[%clk 0:00:55]} 30. Kg1 {[%clk 0:02:13]}  Re8 {[%clk 0:00:44]} 31. Rxe8+ {[%clk 0:02:10]}  Kxe8 {[%clk 0:00:42]} 32. Rxb7 {[%clk 0:02:10]}  Rxa2 {[%clk 0:00:32]} 33. Bxc6+ {[%clk 0:02:09]}  Kf8 {[%clk 0:00:28]} 34. Bd5 {[%clk 0:02:09]}  Ra1+ {[%clk 0:00:24]} 35. Kf2 {[%clk 0:02:08]}  Nd6 {[%clk 0:00:23]} 36. Rd7 {[%clk 0:02:06]}  Ra6 {[%clk 0:00:22]} 37. h4 {[%clk 0:02:03]}  Ke8 {[%clk 0:00:21]} 38. Rc7 {[%clk 0:02:03]}  Ra5 {[%clk 0:00:21]} 39. Bc6+ {[%clk 0:02:01]}  Kf8 {[%clk 0:00:18]} 40. Rd7 {[%clk 0:01:58]}  Nf5 {[%clk 0:00:15]} 41. Bd5 {[%clk 0:01:50]}  Nxh4 {[%clk 0:00:14]} 42. Rxf7+ {[%clk 0:01:46]}  Ke8 {[%clk 0:00:14]} 43. Be4 {[%clk 0:01:42]}  Kxf7 {[%clk 0:00:11]} 44. Kg3 {[%clk 0:01:41]}  Nf5+ {[%clk 0:00:11]} 45. Kf3 {[%clk 0:01:41]}  Ra3+ {[%clk 0:00:10]} 0-1


[Site "https://www.chess.com"]

[Event "Titled Tuesday Blitz April 18 Late 2023"]
[White "Chabris, Christopher"]
[Black "angelgab3"]
[WhiteFideId "2005263"]
[WhiteElo "2304"]
[BlackElo "2525"]
[Result "0-1"]
[Round "05"]
[TimeControl "180+2"]
[Date "2023.04.18"]
[WhiteClock "0:00:02"]
[BlackClock "0:00:28"]

1. e4 {[%clk 0:03:00]}  e5 {[%clk 0:02:59]} 2. Nf3 {[%clk 0:02:59]}  Nc6 {[%clk 0:03:00]} 3. Bb5 {[%clk 0:02:59]}  a6 {[%clk 0:03:00]} 4. Ba4 {[%clk 0:03:00]}  Nf6 {[%clk 0:03:01]} 5. O-O {[%clk 0:03:00]}  b5 {[%clk 0:03:02]} 6. Bb3 {[%clk 0:02:59]}  Bb7 {[%clk 0:03:02]} 7. d3 {[%clk 0:02:58]}  Be7 {[%clk 0:03:02]} 8. a4 {[%clk 0:02:57]}  O-O {[%clk 0:03:03]} 9. Nbd2 {[%clk 0:02:49]}  Re8 {[%clk 0:03:00]} 10. Re1 {[%clk 0:02:49]}  h6 {[%clk 0:02:58]} 11. c3 {[%clk 0:02:46]}  Bf8 {[%clk 0:02:49]} 12. d4 {[%clk 0:02:27]}  exd4 {[%clk 0:02:22]} 13. cxd4 {[%clk 0:02:00]}  Na5 {[%clk 0:02:22]} 14. Bc2 {[%clk 0:01:45]}  d6 {[%clk 0:02:20]} 15. b3 {[%clk 0:01:33]}  c5 {[%clk 0:01:18]} 16. Bb2 {[%clk 0:01:23]}  cxd4 {[%clk 0:01:14]} 17. Nxd4 {[%clk 0:01:22]}  Rc8 {[%clk 0:01:12]} 18. Bd3 {[%clk 0:01:14]}  b4 {[%clk 0:01:04]} 19. Nf5 {[%clk 0:01:02]}  g6 {[%clk 0:00:55]} 20. Ng3 {[%clk 0:00:55]}  Nd7 {[%clk 0:00:54]} 21. Rc1 {[%clk 0:00:42]}  Nc5 {[%clk 0:00:54]} 22. Bf1 {[%clk 0:00:39]}  Bg7 {[%clk 0:00:49]} 23. Bxg7 {[%clk 0:00:34]}  Kxg7 {[%clk 0:00:50]} 24. Qf3 {[%clk 0:00:26]}  Nd7 {[%clk 0:00:38]} 25. Rxc8 {[%clk 0:00:22]}  Qxc8 {[%clk 0:00:39]} 26. Nc4 {[%clk 0:00:21]}  Nxc4 {[%clk 0:00:37]} 27. Bxc4 {[%clk 0:00:21]}  Ne5 {[%clk 0:00:38]} 28. Qf4 {[%clk 0:00:18]}  Nxc4 {[%clk 0:00:34]} 29. bxc4 {[%clk 0:00:18]}  Qxc4 {[%clk 0:00:35]} 30. Rc1 {[%clk 0:00:17]}  Qe6 {[%clk 0:00:32]} 31. Rc7 {[%clk 0:00:16]}  Re7 {[%clk 0:00:33]} 32. Rc1 {[%clk 0:00:13]}  a5 {[%clk 0:00:31]} 33. h4 {[%clk 0:00:13]}  Qf6 {[%clk 0:00:32]} 34. Qe3 {[%clk 0:00:12]}  Qe5 {[%clk 0:00:31]} 35. f4 {[%clk 0:00:10]}  Qb2 {[%clk 0:00:30]} 36. f5 {[%clk 0:00:09]}  Bxe4 {[%clk 0:00:27]} 37. fxg6 {[%clk 0:00:07]}  Bxg6 {[%clk 0:00:28]} 38. Qf4 {[%clk 0:00:06]}  Qe5 {[%clk 0:00:28]} 39. Qf2 {[%clk 0:00:04]}  Qe3 {[%clk 0:00:28]} 40. h5 {[%clk 0:00:03]}  Qxf2+ {[%clk 0:00:28]} 41. Kxf2 {[%clk 0:00:03]}  Bh7 {[%clk 0:00:28]} 42. Rc6 {[%clk 0:00:03]}  Rb7 {[%clk 0:00:28]} 43. Rxd6 {[%clk 0:00:02]}  b3 {[%clk 0:00:28]} 0-1


[Site "https://www.chess.com"]

[Event "Titled Tuesday Blitz April 18 Late 2023"]
[White "Kohler, Aran"]
[Black "Petrovic, Aleksa"]
[WhiteFideId "1002856"]
[BlackFideId "967629"]
[WhiteElo "2252"]
[BlackElo "2309"]
[Result "1-0"]
[Round "05"]
[TimeControl "180+2"]
[Date "2023.04.18"]
[WhiteClock "0:00:18"]
[BlackClock "0:00:06"]

1. Nf3 {[%clk 0:02:52]}  Nf6 {[%clk 0:02:56]} 2. d4 {[%clk 0:02:53]}  e6 {[%clk 0:02:56]} 3. Bg5 {[%clk 0:02:53]}  c5 {[%clk 0:02:53]} 4. e3 {[%clk 0:02:51]}  h6 {[%clk 0:02:54]} 5. Bxf6 {[%clk 0:02:49]}  Qxf6 {[%clk 0:02:53]} 6. c3 {[%clk 0:02:50]}  b6 {[%clk 0:02:52]} 7. Nbd2 {[%clk 0:02:48]}  Bb7 {[%clk 0:02:53]} 8. Bd3 {[%clk 0:02:48]}  g6 {[%clk 0:02:50]} 9. Qe2 {[%clk 0:02:48]}  Bg7 {[%clk 0:02:49]} 10. Be4 {[%clk 0:02:47]}  d5 {[%clk 0:02:47]} 11. Bd3 {[%clk 0:02:46]}  O-O {[%clk 0:02:47]} 12. Ne5 {[%clk 0:02:45]}  Nc6 {[%clk 0:02:45]} 13. f4 {[%clk 0:02:45]}  Nxe5 {[%clk 0:02:44]} 14. fxe5 {[%clk 0:02:45]}  Qh4+ {[%clk 0:02:43]} 15. g3 {[%clk 0:02:44]}  Qe7 {[%clk 0:02:43]} 16. O-O {[%clk 0:02:44]}  h5 {[%clk 0:02:34]} 17. h4 {[%clk 0:02:38]}  a6 {[%clk 0:02:27]} 18. Nf3 {[%clk 0:02:34]}  b5 {[%clk 0:02:20]} 19. Rae1 {[%clk 0:02:32]}  c4 {[%clk 0:02:09]} 20. Bb1 {[%clk 0:02:31]}  b4 {[%clk 0:02:09]} 21. Ng5 {[%clk 0:02:28]}  bxc3 {[%clk 0:02:01]} 22. bxc3 {[%clk 0:02:27]}  Bc6 {[%clk 0:02:01]} 23. e4 {[%clk 0:02:26]}  Qa3 {[%clk 0:01:47]} 24. exd5 {[%clk 0:02:13]}  Bxd5 {[%clk 0:01:47]} 25. Be4 {[%clk 0:02:12]}  Qxc3 {[%clk 0:01:45]} 26. Qe3 {[%clk 0:01:43]}  Qxe3+ {[%clk 0:01:41]} 27. Rxe3 {[%clk 0:01:43]}  Rad8 {[%clk 0:01:33]} 28. Bxd5 {[%clk 0:01:37]}  Rxd5 {[%clk 0:01:34]} 29. Nf3 {[%clk 0:01:17]}  Rc8 {[%clk 0:01:23]} 30. Rc3 {[%clk 0:01:15]}  Ra5 {[%clk 0:01:10]} 31. Rf2 {[%clk 0:01:15]}  Bf8 {[%clk 0:01:06]} 32. Rfc2 {[%clk 0:01:15]}  Ra4 {[%clk 0:01:01]} 33. Nd2 {[%clk 0:01:07]}  Be7 {[%clk 0:00:27]} 34. Rxc4 {[%clk 0:01:05]}  Raxc4 {[%clk 0:00:23]} 35. Rxc4 {[%clk 0:00:58]}  Rb8 {[%clk 0:00:16]} 36. Rc2 {[%clk 0:00:54]}  Rb4 {[%clk 0:00:15]} 37. Nf3 {[%clk 0:00:50]}  Kg7 {[%clk 0:00:14]} 38. Kf2 {[%clk 0:00:50]}  Bd8 {[%clk 0:00:14]} 39. Ke3 {[%clk 0:00:48]}  Bb6 {[%clk 0:00:14]} 40. Rd2 {[%clk 0:00:48]}  Ra4 {[%clk 0:00:13]} 41. Ng5 {[%clk 0:00:47]}  Ra3+ {[%clk 0:00:13]} 42. Kf4 {[%clk 0:00:43]}  Ra4 {[%clk 0:00:11]} 43. Nf3 {[%clk 0:00:35]}  Rb4 {[%clk 0:00:10]} 44. Ke4 {[%clk 0:00:36]}  Rb5 {[%clk 0:00:09]} 45. Ke3 {[%clk 0:00:35]}  f6 {[%clk 0:00:08]} 46. Kf4 {[%clk 0:00:28]}  fxe5+ {[%clk 0:00:06]} 47. dxe5 {[%clk 0:00:22]}  Rd5 {[%clk 0:00:05]} 48. Rxd5 {[%clk 0:00:20]}  exd5 {[%clk 0:00:06]} 49. Ng5 {[%clk 0:00:19]}  Bc7 {[%clk 0:00:06]} 50. Ne6+ {[%clk 0:00:18]} 1-0


[Site "https://www.chess.com"]

[Event "Titled Tuesday Blitz April 18 Late 2023"]
[White "Osmonbekov, Talaibek"]
[Black "Sonnenschein, Philipp"]
[WhiteFideId "2017253"]
[BlackFideId "16250877"]
[WhiteElo "2135"]
[BlackElo "2224"]
[Result "0-1"]
[Round "05"]
[TimeControl "180+2"]
[Date "2023.04.18"]
[WhiteClock "0:00:01"]
[BlackClock "0:00:22"]

1. d4 {[%clk 0:03:00]}  Nf6 {[%clk 0:02:56]} 2. Bf4 {[%clk 0:03:01]}  g6 {[%clk 0:02:56]} 3. Nc3 {[%clk 0:03:01]}  Bg7 {[%clk 0:02:55]} 4. e4 {[%clk 0:03:02]}  d5 {[%clk 0:02:55]} 5. e5 {[%clk 0:02:55]}  Ne4 {[%clk 0:02:55]} 6. Nxe4 {[%clk 0:02:46]}  dxe4 {[%clk 0:02:56]} 7. Bc4 {[%clk 0:02:46]}  c5 {[%clk 0:02:46]} 8. c3 {[%clk 0:02:46]}  cxd4 {[%clk 0:02:40]} 9. cxd4 {[%clk 0:02:44]}  Nc6 {[%clk 0:02:40]} 10. Ne2 {[%clk 0:02:44]}  Qa5+ {[%clk 0:02:26]} 11. Bd2 {[%clk 0:02:25]}  Qb6 {[%clk 0:02:24]} 12. Bc3 {[%clk 0:02:25]}  O-O {[%clk 0:02:19]} 13. O-O {[%clk 0:02:24]}  Rd8 {[%clk 0:02:19]} 14. Qb3 {[%clk 0:02:16]}  Qxb3 {[%clk 0:02:15]} 15. Bxb3 {[%clk 0:02:15]}  Bg4 {[%clk 0:02:10]} 16. f3 {[%clk 0:02:15]}  exf3 {[%clk 0:02:09]} 17. gxf3 {[%clk 0:02:15]}  Bh3 {[%clk 0:02:07]} 18. Rfd1 {[%clk 0:02:14]}  e6 {[%clk 0:02:00]} 19. Kf2 {[%clk 0:02:00]}  Bf5 {[%clk 0:01:39]} 20. Ng3 {[%clk 0:01:49]}  Ne7 {[%clk 0:01:35]} 21. Nxf5 {[%clk 0:01:46]}  Nxf5 {[%clk 0:01:34]} 22. d5 {[%clk 0:01:41]}  exd5 {[%clk 0:01:32]} 23. Bxd5 {[%clk 0:01:40]}  Rab8 {[%clk 0:01:29]} 24. Rd3 {[%clk 0:01:20]}  Re8 {[%clk 0:01:21]} 25. f4 {[%clk 0:01:11]}  Bf8 {[%clk 0:01:11]} 26. Rad1 {[%clk 0:00:54]}  Ng7 {[%clk 0:01:03]} 27. b4 {[%clk 0:00:46]}  Ne6 {[%clk 0:01:03]} 28. Kf3 {[%clk 0:00:41]}  Bh6 {[%clk 0:00:57]} 29. Bd2 {[%clk 0:00:29]}  b6 {[%clk 0:00:53]} 30. f5 {[%clk 0:00:22]}  Bxd2 {[%clk 0:00:43]} 31. fxe6 {[%clk 0:00:20]}  fxe6 {[%clk 0:00:43]} 32. R1xd2 {[%clk 0:00:16]}  exd5 {[%clk 0:00:42]} 33. Rxd5 {[%clk 0:00:17]}  Rbc8 {[%clk 0:00:40]} 34. R2d3 {[%clk 0:00:12]}  Rc2 {[%clk 0:00:36]} 35. Rd2 {[%clk 0:00:10]}  Rxd2 {[%clk 0:00:35]} 36. Rxd2 {[%clk 0:00:09]}  Rxe5 {[%clk 0:00:35]} 37. Rd7 {[%clk 0:00:09]}  Rf5+ {[%clk 0:00:36]} 38. Kg4 {[%clk 0:00:09]}  Rf7 {[%clk 0:00:36]} 39. Rd8+ {[%clk 0:00:09]}  Kg7 {[%clk 0:00:37]} 40. h4 {[%clk 0:00:09]}  h5+ {[%clk 0:00:36]} 41. Kg3 {[%clk 0:00:09]}  Rc7 {[%clk 0:00:37]} 42. Rd3 {[%clk 0:00:07]}  Kf6 {[%clk 0:00:30]} 43. a3 {[%clk 0:00:07]}  Rc4 {[%clk 0:00:26]} 44. Rd6+ {[%clk 0:00:04]}  Kf5 {[%clk 0:00:26]} 45. Rd5+ {[%clk 0:00:04]}  Ke6 {[%clk 0:00:26]} 46. Rg5 {[%clk 0:00:02]}  Kf6 {[%clk 0:00:27]} 47. Rd5 {[%clk 0:00:01]}  Rc3+ {[%clk 0:00:26]} 48. Kf4 {[%clk 0:00:01]}  Rxa3 {[%clk 0:00:24]} 49. Rd6+ {[%clk 0:00:01]}  Kg7 {[%clk 0:00:22]} 0-1


[Site "https://www.chess.com"]

[Event "Titled Tuesday Blitz April 18 Late 2023"]
[White "Ronka, Erik"]
[Black "Prithu Gupta"]
[WhiteFideId "505080"]
[BlackFideId "46618546"]
[WhiteElo "2264"]
[BlackElo "2344"]
[Result "1-0"]
[Round "05"]
[TimeControl "180+2"]
[Date "2023.04.18"]
[WhiteClock "0:00:06"]
[BlackClock "0:00:07"]

1. e4 {[%clk 0:03:00]}  d6 {[%clk 0:02:58]} 2. d4 {[%clk 0:02:59]}  g6 {[%clk 0:02:58]} 3. Nf3 {[%clk 0:02:58]}  Bg7 {[%clk 0:02:58]} 4. Bc4 {[%clk 0:02:56]}  Nd7 {[%clk 0:02:55]} 5. Bxf7+ {[%clk 0:02:47]}  Kf8 {[%clk 0:02:54]} 6. Ng5 {[%clk 0:02:23]}  Ndf6 {[%clk 0:02:51]} 7. Nc3 {[%clk 0:02:09]}  Nh6 {[%clk 0:02:43]} 8. Ne6+ {[%clk 0:02:04]}  Bxe6 {[%clk 0:02:41]} 9. Bxe6 {[%clk 0:02:05]}  Nf7 {[%clk 0:02:38]} 10. O-O {[%clk 0:02:03]}  c5 {[%clk 0:02:32]} 11. d5 {[%clk 0:02:01]}  h5 {[%clk 0:02:15]} 12. h3 {[%clk 0:01:58]}  Bh6 {[%clk 0:02:10]} 13. f4 {[%clk 0:01:57]}  h4 {[%clk 0:02:04]} 14. Qf3 {[%clk 0:01:45]}  Nh5 {[%clk 0:02:01]} 15. e5 {[%clk 0:01:13]}  Ng3 {[%clk 0:01:58]} 16. Rf2 {[%clk 0:01:13]}  Kg7 {[%clk 0:01:49]} 17. Ne4 {[%clk 0:01:04]}  Nf5 {[%clk 0:01:27]} 18. c3 {[%clk 0:00:55]}  dxe5 {[%clk 0:01:23]} 19. Kh2 {[%clk 0:00:37]}  exf4 {[%clk 0:01:14]} 20. Bxf4 {[%clk 0:00:38]}  Bxf4+ {[%clk 0:01:10]} 21. Qxf4 {[%clk 0:00:39]}  N7d6 {[%clk 0:01:06]} 22. Ng5 {[%clk 0:00:34]}  Qb8 {[%clk 0:00:52]} 23. Qe5+ {[%clk 0:00:16]}  Kh6 {[%clk 0:00:51]} 24. Bxf5 {[%clk 0:00:11]}  Nxf5 {[%clk 0:00:45]} 25. Nf7+ {[%clk 0:00:10]}  Kh7 {[%clk 0:00:39]} 26. d6 {[%clk 0:00:09]}  exd6 {[%clk 0:00:38]} 27. Qf6 {[%clk 0:00:08]}  d5+ {[%clk 0:00:11]} 28. Kg1 {[%clk 0:00:08]}  Qg3 {[%clk 0:00:10]} 29. Nxh8 {[%clk 0:00:06]}  Rxh8 {[%clk 0:00:09]} 30. Raf1 {[%clk 0:00:06]}  Qd6 {[%clk 0:00:07]} 31. Rxf5 {[%clk 0:00:06]} 1-0


[Site "https://www.chess.com"]